bitfinex-derivatives/quotes_SOLF0:USTF0_20241203
["timestamp","ask_amount","ask_price","bid_price","bid_amount"]
[1733241790335,3.62,224.1,224.03,2.2309]
[1733241790638,3.62,224.1,223.99,1.3779]
[1733241791033,3.62,224.09,223.99,1.3779]
[1733241791234,3.62,224.09,224.02,16.80640796]
[1733241792336,3.62,224.11,224.02,16.80640796]
[1733241792537,3.62,224.11,223.99,1.3779]
[1733241793233,3.62,224.11,224.05,2.2308]
[1733241793434,3.62,224.11,223.99,1.3779]
[1733241793635,3.62,224.11,224.09,2.2303]
[1733241795444,3.62,224.11,224.06,2.2307]
[1733241796043,3.62,224.11,223.99,1.3779]
[1733241796842,3.62,224.11,224.05,2.2308]
[1733241797044,3.62,224.11,223.99,1.3779]
[1733241798445,16.80640796,224.23,223.99,1.3779]
[1733241798646,3.62,224.22,224.03,16.80640796]
[1733241799244,2.2295,224.18,224.11,2.2301]
[1733241799445,3.62,224.22,224.03,16.80640796]
[1733241800540,46.42,224.3,224.11,16.80640796]
[1733241800738,3.62,224.25,224.12,2.7814]
[1733241802043,3.62,224.25,224.13,1.3004]
[1733241802949,47.7538,224.3,224.15,16.80640796]
[1733241803149,3.62,224.26,224.15,16.80640796]
[1733241803341,3.62,224.26,224.18,2.2295]
[1733241803542,3.62,224.26,224.15,16.80640796]
[1733241805751,3.62,224.27,224.15,16.80640796]
[1733241806351,3.62,224.27,224.22,2.2291]
[1733241806645,3.62,224.27,224.13,1.3004]
[1733241806852,20.42640796,224.27,224.13,1.3004]
[1733241807247,2.2288,224.26,224.19,2.2294]
[1733241807442,3.62,224.27,224.13,1.3004]
[1733241807851,3.62,224.27,224.22,2.229]
[1733241808049,3.62,224.27,224.13,1.3004]
[1733241808443,3.62,224.27,224.15,16.80640796]
[1733241808649,3.62,224.26,224.15,16.80640796]
[1733241809651,3.62,224.26,224.24,2.2289]
[1733241810151,3.62,224.26,224.2,2.2292]
[1733241810351,3.62,224.26,224.13,1.3004]
[1733241810753,5.0089,224.26,224.13,1.3004]
[1733241811155,5.0089,224.26,224.19,2.2294]
[1733241811458,16.80640796,224.23,224.05,16.80640796]
[1733241811657,2.2294,224.2,224.13,2.2299]
[1733241811955,3.62,224.19,224.09,16.80640796]
[1733241812259,2.7359,224.25,224.17,2.2296]
[1733241812260,3.62,224.18,224.17,2.2296]
[1733241813054,3.62,224.18,224.16,2.2297]
[1733241813252,3.62,224.18,224.05,16.80640796]
[1733241813754,3.62,224.18,224.09,10.51791312]
[1733241814162,3.62,224.18,224.17,2.2296]
[1733241814754,3.62,224.18,224.15,2.2297]
[1733241814951,3.62,224.18,224.06,10.51791312]
[1733241816255,5.8495,224.18,224.06,10.51791312]
[1733241816455,3.62,224.18,224.06,10.51791312]
[1733241816960,3.62,224.18,224.11,2.2302]
[1733241817161,3.62,224.18,224.06,10.51791312]
[1733241817455,5.8495,224.18,224.1,2.2303]
[1733241817657,3.62,224.18,224.06,10.51791312]
[1733241817858,3.62,224.18,224.09,10.51791312]
[1733241818254,3.62,224.18,224.14,2.2299]
[1733241818659,3.62,224.18,224.09,10.51791312]
[1733241819354,3.62,224.18,224.06,10.51791312]
[1733241820263,14.13791312,224.18,224.03,10.51791312]
[1733241820655,14.13791312,224.18,224.06,10.51791312]
[1733241820656,3.62,224.18,224.06,10.51791312]
[1733241820853,13.43,224.31,224.13,10.51791312]
[1733241821054,10.51791312,224.38,224.2,10.51791312]
[1733241821262,10.51791312,224.38,224.21,2.6648]
[1733241821657,2.2277,224.36,224.27,2.2286]
[1733241821862,12.73135974,224.36,224.27,2.2286]
[1733241822063,10.50365974,224.36,224.27,2.2286]
[1733241822273,2.2279,224.35,224.25,2.2288]
[1733241822660,10.50365974,224.36,224.21,2.6648]
[1733241822865,2.2278,224.35,224.26,2.2286]
[1733241823067,10.50365974,224.36,224.26,2.2286]
[1733241823566,16.80668626,224.37,224.21,2.6648]
[1733241823764,16.80668626,224.33,224.15,1.3423]
[1733241823958,3.6,224.32,224.15,1.3423]
[1733241824156,4.9629,224.32,224.15,1.3423]
[1733241824560,4.9629,224.32,224.17,2.2296]
[1733241824871,16.80668626,224.29,224.15,1.3423]
[1733241825075,2.2289,224.24,224.15,2.2297]
[1733241825261,3.6,224.23,224.14,2.7166]
[1733241825567,2.2296,224.17,224.08,3.5462]
[1733241825866,3.6,224.16,224.04,2.7166]
[1733241826263,3.6,224.16,224.08,2.2305]
[1733241826963,3.6,224.16,224.09,2.2304]
[1733241827571,5.8297,224.16,224.09,2.2304]
[1733241828171,5.8297,224.16,224.04,1.3117]
[1733241828172,3.6,224.16,224.04,1.3117]
[1733241828368,3.6,224.16,223.98,1.3158]
[1733241828369,1.2952,224.15,223.98,2.6759]
[1733241828667,2.2301,224.12,224.04,2.2309]
[1733241830969,2.2301,224.12,223.98,4.0817]
[1733241831171,1.2952,224.15,224.05,2.2308]
[1733241831966,2.2301,224.12,224.06,2.2307]
[1733241833470,16.83128587,224.12,223.92,16.83128587]
[1733241834273,16.83128587,224.08,223.92,16.83128587]
[1733241834472,3.6,224.07,223.91,1.3598]
[1733241834968,3.6,224.07,223.98,2.2315]
[1733241835370,3.6,224.07,223.91,1.3598]
[1733241835571,2.2309,224.04,223.91,1.3598]
[1733241835769,3.6,224.07,223.91,1.3598]
[1733241836077,3.6,224.07,223.92,16.83128587]
[1733241837074,3.6,224.07,223.96,16.83128587]
[1733241837376,3.6,224.07,224.0,16.83128587]
[1733241837669,3.6,224.07,224.01,2.7515]
[1733241838378,3.6,224.07,224.04,2.2308]
[1733241838570,3.6,224.07,224.01,2.7515]
[1733241838777,3.6,224.07,223.96,16.83128587]
[1733241839177,3.6,224.07,223.94,2.7191]
[1733241839679,3.6,224.07,223.97,2.2315]
[1733241839971,3.6,224.07,223.94,2.7191]
[1733241840373,3.6,224.07,224.02,2.231]
[1733241841278,3.6,224.07,224.0,16.83128587]
[1733241841778,3.6,224.07,224.06,2.2307]
[1733241842179,3.6,224.07,224.0,16.83128587]
[1733241842375,3.6,224.07,224.03,2.231]
[1733241842574,3.6,224.07,223.96,16.83128587]
[1733241842776,3.6,224.07,223.94,2.7191]
[1733241842979,3.6,224.07,223.97,2.2316]
[1733241843183,3.6,224.07,223.94,2.7191]
[1733241843475,16.83128587,224.04,223.88,16.83128587]
[1733241843673,1.3712,224.03,223.86,1.3791]
[1733241844381,1.3071,224.02,223.86,1.3791]
[1733241844582,2.2313,224.0,223.93,2.2319]
[1733241845082,3.6,223.99,223.86,1.3791]
[1733241845288,3.6,223.99,223.88,16.83128587]
[1733241845477,3.6,223.99,223.92,16.83128587]
[1733241846082,1.462,223.99,223.98,2.2315]
[1733241846282,1.3047,224.11,223.93,1.3463]
[1733241846482,3.6,224.1,223.96,16.83128587]
[1733241846878,1.2908,224.14,223.96,16.83128587]
[1733241847084,3.6,224.15,224.04,16.83128587]
[1733241847482,3.6,224.15,224.05,1.3527]
[1733241847979,2.6394,224.23,224.08,16.83128587]
[1733241848182,3.6,224.22,224.09,1.322]
[1733241848885,1.2908,224.23,224.09,1.322]
[1733241849179,3.6,224.22,224.12,16.83128587]
[1733241849375,3.6,224.25,224.12,16.83128587]
[1733241849783,3.6,224.26,224.12,16.83128587]
[1733241850182,46.46,224.28,224.12,16.83128587]
[1733241850382,3.58,224.27,224.22,2.2291]
[1733241850685,3.58,224.28,224.12,16.83128587]
[1733241850884,3.58,224.28,224.16,16.83128587]
[1733241851088,3.58,224.28,224.17,1.3137]
[1733241851289,3.58,224.28,224.25,2.2288]
[1733241851586,3.58,224.28,224.17,2.5968]
[1733241852783,3.58,224.28,224.26,2.2287]
[1733241853183,3.58,224.33,224.17,2.5968]
[1733241853385,3.58,224.33,224.2,16.83128587]
[1733241853583,3.58,224.33,224.21,1.4021]
[1733241854285,3.58,224.33,224.3,2.2283]
[1733241854886,3.58,224.33,224.21,1.4021]
[1733241855686,3.58,224.33,224.3,2.2283]
[1733241856691,20.43028587,224.39,224.21,1.4021]
[1733241856692,18.20278587,224.39,224.21,1.4021]
[1733241856892,3.58,224.38,224.21,1.4021]
[1733241857394,3.58,224.38,224.31,2.2282]
[1733241858093,3.58,224.38,224.32,2.2281]
[1733241859195,3.58,224.38,224.33,2.228]
[1733241859791,1.3715,224.39,224.36,2.2277]
[1733241859986,3.58,224.38,224.24,16.83128587]
[1733241861897,3.58,224.38,224.21,1.4021]
[1733241862092,3.58,224.38,224.31,2.2282]
[1733241862595,3.58,224.38,224.21,1.4021]
[1733241862797,3.58,224.38,224.33,2.228]
[1733241862997,3.58,224.38,224.21,1.4021]
[1733241863395,3.58,224.38,224.32,2.2281]
[1733241863702,3.58,224.38,224.27,16.83128587]
[1733241863904,3.58,224.38,224.28,1.3333]
[1733241864801,3.58,224.38,224.28,2.6498]
[1733241865610,1.3246,224.57,224.37,16.83128587]
[1733241865799,1.3246,224.57,224.44,16.83128587]
[1733241865993,1.3246,224.57,224.5,2.2263]
[1733241866196,1.3246,224.57,224.44,16.83128587]
[1733241866405,1.3246,224.57,224.39,2.6829]
[1733241866701,16.83128587,224.56,224.39,2.6829]
[1733241866904,16.83128587,224.52,224.38,1.3592]
[1733241867107,2.2265,224.49,224.35,16.83128587]
[1733241867401,16.83128587,224.52,224.35,16.83128587]
[1733241867402,3.58,224.48,224.35,16.83128587]
[1733241868196,3.58,224.48,224.45,2.2268]
[1733241869197,3.58,224.48,224.35,16.83128587]
[1733241869595,3.58,224.48,224.39,16.83128587]
[1733241870303,3.58,224.48,224.46,2.2267]
[1733241870499,3.58,224.48,224.39,16.83128587]
[1733241870804,3.58,224.48,224.47,2.2266]
[1733241871800,3.58,224.5,224.49,2.2264]
[1733241871998,3.58,224.5,224.39,16.83128587]
[1733241872205,3.58,224.5,224.35,16.83128587]
[1733241872501,1.3246,224.57,224.39,16.83128587]
[1733241872706,3.58,224.56,224.39,16.83128587]
[1733241872905,3.58,224.56,224.5,2.2263]
[1733241873404,3.58,224.56,224.52,2.2261]
[1733241873603,3.58,224.56,224.43,16.83128587]
[1733241873811,1.3246,224.57,224.43,16.83128587]
[1733241874011,3.58,224.56,224.43,16.83128587]
[1733241874210,3.58,224.56,224.5,2.2263]
[1733241874802,2.2262,224.52,224.46,2.2267]
[1733241875001,3.58,224.56,224.35,16.83128587]
[1733241875212,16.83128587,224.52,224.35,16.83128587]
[1733241875406,16.83128587,224.52,224.44,2.2269]
[1733241876109,16.83128587,224.52,224.35,16.83128587]
[1733241876309,16.83128587,224.52,224.32,2.20701696]
[1733241876512,19.05748587,224.52,224.45,2.2268]
[1733241876806,16.83128587,224.52,224.45,2.2268]
[1733241877010,16.83128587,224.52,224.32,2.20701696]
[1733241877211,16.83128587,224.52,224.31,4.0421]
[1733241877412,16.83128587,224.44,224.23,0.94676591]
[1733241877710,16.83128587,224.4,224.24,4.1771]
[1733241877906,3.58,224.39,224.24,4.1771]
[1733241878912,3.58,224.39,224.28,2.2285]
[1733241879108,3.58,224.39,224.24,4.1771]
[1733241879309,3.58,224.39,224.26,16.83128587]
[1733241880813,3.58,224.39,224.24,4.1771]
[1733241882011,5.8075,224.39,224.31,2.2281]
[1733241882206,5.8075,224.39,224.24,4.1771]
[1733241882606,3.58,224.39,224.32,2.2281]
[1733241882807,3.58,224.39,224.24,4.1771]
[1733241883214,3.58,224.39,224.33,2.2279]
[1733241883414,3.58,224.39,224.24,4.1771]
[1733241883613,3.58,224.39,224.25,1.11530254]
[1733241883913,3.58,224.39,224.24,4.1771]
[1733241884114,3.58,224.39,224.33,2.228]
[1733241885218,2.2277,224.37,224.24,4.1771]
[1733241885615,3.58,224.39,224.24,1.3678]
[1733241885813,16.83128587,224.36,224.18,18.30578587]
[1733241886017,16.83128587,224.36,224.19,1.11558875]
[1733241886319,16.83128587,224.36,224.18,18.30578587]
[1733241887209,2.2281,224.32,224.25,2.2288]
[1733241887414,3.58,224.31,224.25,2.2288]
[1733241888118,3.58,224.31,224.18,18.30578587]
[1733241888320,3.58,224.31,224.19,1.11562422]
[1733241888621,3.58,224.31,224.18,1.4745]
[1733241888921,1.4747,224.3,224.18,1.4745]
[1733241889412,1.4747,224.3,224.16,1.3504]
[1733241889413,1.4747,224.3,224.15,1.4659]
[1733241889614,2.2286,224.28,224.2,2.2293]
[1733241889912,1.4747,224.3,224.2,2.2293]
[1733241890112,1.4747,224.3,224.15,1.4659]
[1733241890312,1.4747,224.3,224.16,1.11575685]
[1733241890514,2.2285,224.28,224.21,2.2291]
[1733241891119,2.2285,224.28,224.22,2.2291]
[1733241891815,2.2285,224.28,224.22,2.229]
[1733241892015,2.2284,224.29,224.15,1.4659]
[1733241892213,3.58,224.28,224.19,16.83128587]
[1733241892515,3.58,224.28,224.27,2.2286]
[1733241892715,3.58,224.28,224.19,16.83128587]
[1733241892912,3.58,224.28,224.25,2.2288]
[1733241893313,3.58,224.28,224.2,1.11565368]
[1733241893314,3.58,224.28,224.26,2.2287]
[1733241893722,3.58,224.28,224.19,16.83128587]
[1733241895423,3.58,224.28,224.24,2.2288]
[1733241895825,3.58,224.28,224.19,16.83128587]
[1733241896917,3.58,224.28,224.25,2.2287]
[1733241898526,3.58,224.28,224.23,2.2289]
[1733241899220,3.58,224.28,224.15,1.4659]
[1733241899221,3.58,224.28,224.15,18.29718587]
[1733241899720,2.229,224.24,224.15,1.4659]
[1733241899927,3.58,224.28,224.15,1.4659]
[1733241900231,3.58,224.27,224.15,18.29718587]
[1733241900428,3.58,224.26,224.25,2.2288]
[1733241900625,3.58,224.27,224.19,19.09724576]
[1733241900826,3.58,224.27,224.19,16.83128587]
[1733241901029,3.58,224.27,224.26,2.2287]
[1733241901222,1.4707,224.36,224.19,16.83128587]
[1733241901425,46.4,224.42,224.23,16.83128587]
[1733241901766,3.58,224.38,224.24,2.8396]
[1733241902338,2.228,224.34,224.24,2.8396]
[1733241902536,1.3795,224.37,224.24,2.8396]
[1733241902740,1.3795,224.37,224.31,2.2282]
[1733241902928,1.3795,224.37,224.24,2.8396]
[1733241902929,3.6071,224.37,224.24,2.8396]
[1733241903129,1.3795,224.37,224.24,2.8396]
[1733241903327,1.3795,224.37,224.29,2.2283]
[1733241904131,2.2277,224.36,224.28,2.2285]
[1733241904336,1.3795,224.37,224.24,2.8396]
[1733241904951,1.3795,224.37,224.24,1.3576]
[1733241905667,3.58,224.38,224.24,1.3576]
[1733241905853,3.58,224.38,224.33,2.228]
[1733241906060,16.83128587,224.44,224.26,16.83128587]
[1733241906061,3.56,224.37,224.26,16.83128587]
[1733241906268,16.83128587,224.44,224.27,2.9147]
[1733241906457,21.17418587,224.48,224.27,2.9147]
[1733241906662,3.56,224.47,224.27,2.9147]
[1733241907061,2.2268,224.46,224.38,2.2274]
[1733241907557,23.40078587,224.48,224.4,2.2273]
[1733241907762,3.56,224.47,224.3,16.83128587]
[1733241908376,3.56,224.47,224.4,2.2273]
[1733241908557,3.56,224.47,224.3,19.03415831]
[1733241909160,46.4,224.49,224.34,16.83128587]
[1733241909468,3.56,224.48,224.35,1.4116]
[1733241910261,20.39128587,224.48,224.35,1.4116]
[1733241910657,22.61788587,224.48,224.41,2.2272]
[1733241910863,3.56,224.48,224.35,1.4116]
[1733241911864,3.56,224.48,224.41,2.2272]
[1733241912077,3.56,224.48,224.35,1.4116]
[1733241912265,3.56,224.48,224.42,2.227]
[1733241912744,3.56,224.48,224.44,2.2269]
[1733241913146,3.56,224.48,224.35,1.4116]
[1733241913452,20.39128587,224.48,224.35,1.4116]
[1733241914155,13.43,224.66,224.35,18.24288587]
[1733241914349,16.83128587,224.6,224.39,16.83128587]
[1733241914653,2.2256,224.58,224.4,2.9302]
[1733241914857,3.56,224.57,224.4,2.9302]
[1733241915754,3.56,224.56,224.52,2.2261]
[1733241916851,3.56,224.56,224.43,16.83128587]
[1733241916852,3.56,224.56,224.53,2.226]
[1733241917552,3.56,224.56,224.51,2.2262]
[1733241918053,20.39128587,224.56,224.4,2.9302]
[1733241918287,16.83128587,224.52,224.4,2.9302]
[1733241918467,16.83128587,224.52,224.4,1.5064]
[1733241918755,1.3679,224.51,224.35,1.4116]
[1733241918949,13.43,224.62,224.38,16.83128587]
[1733241919154,2.2251,224.63,224.55,2.2258]
[1733241919453,5.76906989,224.66,224.48,2.26768938]
[1733241919454,16.83128587,224.65,224.48,2.26768938]
[1733241919653,16.83128587,224.65,224.47,4.3292]
[1733241919853,2.2251,224.63,224.47,4.3292]
[1733241920161,16.83128587,224.65,224.47,4.3292]
[1733241920354,16.83128587,224.61,224.47,2.8836]
[1733241920553,16.83128587,224.57,224.41,1.4788]
[1733241920758,3.56,224.56,224.41,1.4788]
[1733241920955,3.56,224.55,224.41,1.4788]
[1733241921469,3.56,224.55,224.44,16.83128587]
[1733241921649,3.56,224.55,224.44,19.05524325]
[1733241923053,3.56,224.55,224.44,16.83128587]
[1733241923261,3.56,224.55,224.41,1.4788]
[1733241925949,3.56,224.55,224.49,2.2264]
[1733241926154,3.56,224.55,224.41,1.4788]
[1733241926555,3.56,224.55,224.51,2.2262]
[1733241927951,3.56,224.55,224.41,1.4788]
[1733241928155,1.4711,224.6,224.53,2.226]
[1733241928156,3.56,224.54,224.53,2.226]
[1733241928456,3.56,224.54,224.43,2.1986713]
[1733241928760,3.56,224.54,224.38,1.4945]
[1733241928761,3.56,224.54,224.42,16.83128587]
[1733241928956,3.56,224.54,224.43,2.25417304]
[1733241929155,3.56,224.54,224.53,2.2261]
[1733241931557,3.56,224.72,224.53,10.46726596]
[1733241931752,1.4706,224.71,224.6,10.46726596]
[1733241931957,1.4706,224.71,224.64,10.46726596]
[1733241932353,1.4706,224.71,224.61,10.46726596]
[1733241932765,1.4706,224.71,224.68,2.2245]
[1733241933260,1.4706,224.71,224.64,10.46726596]
[1733241933465,1.4706,224.71,224.69,2.2244]
[1733241933758,1.4706,224.71,224.64,10.46726596]
[1733241934062,10.46726596,224.79,224.64,10.46726596]
[1733241934063,10.46726596,224.82,224.67,10.46726596]
[1733241934254,1.4123,224.79,224.67,10.46726596]
[1733241934459,3.54,224.78,224.76,2.2237]
[1733241934659,3.54,224.78,224.67,10.46726596]
[1733241935057,3.54,224.78,224.7,2.2243]
[1733241935262,3.54,224.78,224.64,10.46726596]
[1733241935263,10.46726596,224.76,224.64,10.46726596]
[1733241935458,10.46726596,224.76,224.61,10.46726596]
[1733241935660,3.54,224.78,224.59,16.74620834]
[1733241935963,2.2238,224.77,224.59,16.74620834]
[1733241936263,3.54,224.78,224.59,16.74620834]
[1733241936463,2.2238,224.77,224.68,2.2246]
[1733241936663,2.2238,224.77,224.59,16.74620834]
[1733241936857,2.2238,224.76,224.68,2.2245]
[1733241937167,2.2238,224.76,224.59,16.74620834]
[1733241937961,3.54,224.78,224.59,16.74620834]
[1733241938162,16.74620834,224.75,224.59,16.74620834]
[1733241938559,2.27641886,224.74,224.59,16.74620834]
[1733241938764,16.74620834,224.75,224.59,16.74620834]
[1733241938965,3.54,224.78,224.59,16.74620834]
[1733241939463,3.54,224.78,224.63,16.74620834]
[1733241940159,3.54,224.78,224.64,2.9918]
[1733241940755,3.54,224.77,224.64,2.9918]
[1733241942859,3.54,224.81,224.76,2.2237]
[1733241943057,3.54,224.81,224.67,16.74620834]
[1733241943262,2.26143825,224.87,224.73,16.74620834]
[1733241943661,2.26143825,224.87,224.65,3.68986244]
[1733241943662,16.74620834,224.87,224.69,16.74620834]
[1733241944062,2.2228,224.86,224.78,2.2235]
[1733241944264,3.54,224.87,224.73,16.74620834]
[1733241944669,3.54,224.87,224.8,2.2234]
[1733241945060,3.54,224.87,224.73,16.74620834]
[1733241945262,3.54,224.87,224.81,2.2233]
[1733241945768,3.54,224.87,224.82,2.2232]
[1733241945966,3.54,224.87,224.73,16.74620834]
[1733241946167,20.28620834,224.87,224.65,7.22986244]
[1733241946364,2.223,224.84,224.67,16.74620834]
[1733241946566,22.51478787,224.87,224.67,16.74620834]
[1733241946867,2.2231,224.83,224.76,2.2237]
[1733241947259,22.51478787,224.87,224.76,2.2237]
[1733241947465,2.223,224.84,224.76,2.2237]
[1733241947665,20.28620834,224.87,224.77,2.2237]
[1733241947866,22.45735943,224.87,224.77,2.2237]
[1733241948066,2.2231,224.84,224.67,16.74620834]
[1733241948759,2.2231,224.84,224.68,1.11326332]
[1733241949066,2.2231,224.84,224.67,16.74620834]
[1733241949371,3.54,224.87,224.77,2.2237]
[1733241949668,3.54,224.87,224.67,16.74620834]
[1733241950068,3.54,224.87,224.8,2.2233]
[1733241950670,5.7627,224.87,224.8,2.2233]
[1733241950872,5.7627,224.87,224.81,2.2232]
[1733241951264,5.7627,224.87,224.71,16.74620834]
[1733241951265,3.54,224.86,224.71,16.74620834]
[1733241951468,3.54,224.86,224.72,1.11314209]
[1733241951664,3.54,224.86,224.71,16.74620834]
[1733241951869,3.54,224.86,224.81,2.2232]
[1733241952270,3.54,224.86,224.71,16.74620834]
[1733241952671,3.54,224.86,224.72,1.11311368]
[1733241952872,3.54,224.86,224.71,16.74620834]
[1733241953073,3.54,224.86,224.72,1.1131386]
[1733241953275,3.54,224.86,224.81,2.2232]
[1733241953573,3.54,224.86,224.71,16.74620834]
[1733241953765,3.54,224.86,224.81,2.2232]
[1733241953970,3.54,224.86,224.71,16.74620834]
[1733241954173,3.54,224.86,224.72,1.11311889]
[1733241954373,3.54,224.86,224.82,2.2231]
[1733241955476,3.54,224.86,224.71,16.74620834]
[1733241955477,3.54,224.86,224.75,2.2238]
[1733241955675,3.54,224.86,224.74,10.45503489]
[1733241956070,3.54,224.86,224.75,2.7962]
[1733241956779,3.54,224.86,224.83,2.2231]
[1733241956976,3.54,224.86,224.75,2.7962]
[1733241957876,3.54,224.86,224.81,2.2233]
[1733241958078,3.54,224.86,224.75,2.7962]
[1733241958677,3.54,224.86,224.81,2.2232]
[1733241958878,3.54,224.86,224.75,2.7962]
[1733241959083,3.54,224.86,224.82,2.2232]
[1733241959979,3.54,224.86,224.75,2.7962]
[1733241960476,1.4521,224.92,224.82,10.45503489]
[1733241961385,1.4521,224.92,224.79,10.45503489]
[1733241961680,2.2225,224.89,224.79,10.45503489]
[1733241961874,10.45503489,224.91,224.83,2.2231]
[1733241962272,2.2225,224.89,224.83,2.2231]
[1733241962478,10.45503489,224.91,224.79,10.45503489]
[1733241962691,3.54,224.97,224.9,10.45503489]
[1733241963778,3.54,224.97,224.92,2.2221]
[1733241963978,3.54,224.97,224.9,10.45503489]
[1733241963979,5.7617,224.97,224.9,10.45503489]
[1733241964179,3.54,224.97,224.9,10.45503489]
[1733241964383,3.54,224.97,224.92,2.2222]
[1733241964678,3.54,224.97,224.9,10.45503489]
[1733241964879,3.54,224.97,224.95,2.2219]
[1733241965078,3.54,224.97,224.9,10.45503489]
[1733241965984,3.54,224.97,224.95,2.2219]
[1733241966782,3.52,225.0,224.95,2.2219]
[1733241967778,3.52,225.0,224.93,10.45503489]
[1733241968183,3.52,225.0,224.97,2.2216]
[1733241969285,3.52,225.0,224.96,2.2217]
[1733241969583,3.52,225.0,224.9,10.45503489]
[1733241969785,5.7414,225.0,224.93,2.2221]
[1733241969983,3.52,225.0,224.9,10.45503489]
[1733241970388,2.2215,224.99,224.93,2.2221]
[1733241970585,3.52,225.0,224.9,10.45503489]
[1733241971086,5.7414,225.0,224.9,10.45503489]
[1733241971287,3.52,225.0,224.9,10.45503489]
[1733241971487,5.7415,225.0,224.93,2.2221]
[1733241971688,5.7415,225.0,224.9,10.45503489]
[1733241972087,3.52,225.0,224.93,10.45503489]
[1733241972482,3.52,225.0,224.96,2.2218]
[1733241973882,3.52,225.0,224.95,2.2219]
[1733241974085,3.52,225.0,224.93,10.45503489]
[1733241974588,3.52,225.0,224.96,2.2218]
[1733241974790,3.52,225.0,224.93,10.45503489]
[1733241974991,3.52,225.0,224.9,10.45503489]
[1733241975183,3.52,225.0,224.95,2.2218]
[1733241975384,3.52,225.0,224.93,10.45503489]
[1733241975789,3.52,225.0,224.95,2.2219]
[1733241976190,3.52,225.0,224.9,10.45503489]
[1733241976586,2.2216,224.98,224.9,10.45503489]
[1733241976795,13.97503489,225.0,224.87,10.45503489]
[1733241977487,10.45503489,224.94,224.81,1.5007]
[1733241977685,2.2226,224.89,224.81,1.5007]
[1733241977886,3.52,224.88,224.77,13.35803489]
[1733241978287,13.97503489,224.88,224.77,2.903]
[1733241978491,3.52,224.88,224.77,13.35803489]
[1733241978696,3.52,224.88,224.8,10.45503489]
[1733241979398,3.52,224.88,224.83,2.2231]
[1733241979595,3.52,224.88,224.8,10.45503489]
[1733241979891,3.52,224.88,224.77,13.35803489]
[1733241980799,3.52,224.88,224.82,2.2232]
[1733241981292,3.52,224.88,224.8,2.2233]
[1733241981698,3.52,224.88,224.77,13.35803489]
[1733241981997,3.52,224.88,224.77,10.45503489]
[1733241982296,2.2229,224.86,224.78,2.2235]
[1733241982497,13.97503489,224.88,224.74,10.45503489]
[1733241984002,2.2232,224.83,224.75,2.2238]
[1733241984195,13.97503489,224.88,224.71,11.94643489]
[1733241984196,10.45503489,224.85,224.71,11.94643489]
[1733241984493,2.18141858,224.84,224.71,11.94643489]
[1733241984698,10.45503489,224.85,224.71,11.94643489]
[1733241984904,13.97503489,224.88,224.71,11.94643489]
[1733241985197,13.97503489,224.88,224.77,2.2236]
[1733241985198,2.223,224.84,224.77,2.2236]
[1733241985395,10.45503489,224.85,224.71,10.45503489]
[1733241985601,10.45503489,224.82,224.68,10.45503489]
[1733241985795,3.52,224.81,224.74,2.2239]
[1733241986396,3.52,224.81,224.68,10.45503489]
[1733241986596,2.2235,224.79,224.73,2.224]
[1733241986797,3.52,224.81,224.68,10.45503489]
[1733241987112,2.2235,224.79,224.73,2.2241]
[1733241987402,2.2235,224.79,224.68,10.45503489]
[1733241987898,2.2235,224.79,224.73,2.224]
[1733241988095,2.2236,224.78,224.73,2.224]